[Event "MČR mládeže v rapid šachu 2024 H10"]
[Site "Harrachov, Czech Republic"]
[Date "????.??.??"]
[Round "5.3"]
[White "Zelenka Tomas"]
[Black "Vo Daniel"]
[Result "0-1"]
[TimeControl "20+5"]
[WhiteFideId "23750200"]
[BlackFideId "23761229"]
[WhiteElo "1607"]
[BlackElo "1679"]

1. e4 {[%clk 00:20:07]} {[%emt 00:00:02]} c5 {[%clk 00:20:12]} {[%emt
00:00:03]} 2. Nf3 {[%clk 00:20:08]} {[%emt 00:00:04]} d6 {[%clk 00:19:50]}
{[%emt 00:00:28]} 3. d4 {[%clk 00:20:06]} {[%emt 00:00:07]} cxd4 {[%clk
00:19:53]} {[%emt 00:00:01]} 4. Nxd4 {[%clk 00:20:08]} {[%emt 00:00:02]} Nf6
{[%clk 00:19:49]} {[%emt 00:00:09]} 5. Nc3 {[%clk 00:20:09]} {[%emt 00:00:05]}
a6 {[%clk 00:19:52]} {[%emt 00:00:03]} 6. Bc4 {[%clk 00:19:46]} {[%emt
00:00:26]} e6 {[%clk 00:19:30]} {[%emt 00:00:29]} 7. O-O {[%clk 00:19:29]}
{[%emt 00:00:21]} b5 {[%clk 00:18:33]} {[%emt 00:01:03]} 8. Bb3 {[%clk
00:18:50]} {[%emt 00:00:43]} b4 {[%clk 00:18:19]} {[%emt 00:00:20]} 9. Nb1
{[%clk 00:14:46]} {[%emt 00:04:08]} Nxe4 {[%clk 00:18:07]} {[%emt 00:00:19]} 10.
Re1 {[%clk 00:13:44]} {[%emt 00:01:03]} Nc5 {[%clk 00:17:54]} {[%emt 00:00:22]}
11. Bd5 {[%clk 00:13:20]} {[%emt 00:00:27]} Bb7 {[%clk 00:17:34]} {[%emt
00:00:27]} 12. Qf3 {[%clk 00:12:15]} {[%emt 00:01:08]} Bxd5 {[%clk 00:16:52]}
{[%emt 00:00:48]} 13. Qxd5 {[%clk 00:12:17]} {[%emt 00:00:03]} Ra7 {[%clk
00:16:44]} {[%emt 00:00:14]} 14. Bf4 {[%clk 00:08:37]} {[%emt 00:03:44]} Be7
{[%clk 00:16:18]} {[%emt 00:00:33]} 15. Qf3 {[%clk 00:07:20]} {[%emt 00:01:20]}
O-O {[%clk 00:16:02]} {[%emt 00:00:23]} 16. Qg4 {[%clk 00:06:42]} {[%emt
00:00:40]} f5 {[%clk 00:14:28]} {[%emt 00:01:43]} 17. Qg3 {[%clk 00:05:37]}
{[%emt 00:01:05]} e5 {[%clk 00:14:28]} {[%emt 00:00:10]} 18. Bh6 {[%clk
00:05:30]} {[%emt 00:00:10]} Bh4 {[%clk 00:14:24]} {[%emt 00:00:11]} 19. Qf3
{[%clk 00:04:34]} {[%emt 00:01:00]} exd4 {[%clk 00:14:15]} {[%emt 00:00:15]} 20.
Qd5+ {[%clk 00:04:32]} {[%emt 00:00:05]} Raf7 {[%clk 00:13:59]} {[%emt
00:00:21]} 21. Bf4 {[%clk 00:04:21]} {[%emt 00:00:15]} Ne4 {[%emt 00:00:44]} 22.
g3 {[%emt 00:00:46]} Be7 {[%clk 00:11:52]} {[%emt 00:00:43]} 23. Qxd4 {[%clk
00:03:57]} {[%emt 00:00:29]} Nc6 {[%clk 00:11:08]} {[%emt 00:00:50]} 24. Qc4
{[%clk 00:03:53]} {[%emt 00:00:07]} Ne5 {[%clk 00:10:01]} {[%emt 00:01:13]} 25.
Qb3 {[%clk 00:03:52]} {[%emt 00:00:05]} Qb6 {[%clk 00:09:32]} {[%emt 00:00:35]}
26. Be3 {[%clk 00:03:16]} {[%emt 00:00:41]} Qb7 {[%clk 00:09:34]} {[%emt
00:00:03]} 27. Bf4 {[%clk 00:02:46]} {[%emt 00:00:33]} Bg5 {[%clk 00:08:30]}
{[%emt 00:01:10]} 28. Bxg5 {[%clk 00:02:35]} {[%emt 00:00:16]} Nxg5 {[%clk
00:08:24]} {[%emt 00:00:10]} 29. f4 {[%clk 00:02:29]} {[%emt 00:00:12]} Ngf3+
{[%clk 00:07:59]} {[%emt 00:00:30]} 30. Kf2 {[%clk 00:02:29]} {[%emt 00:00:02]}
Qb6+ {[%clk 00:07:58]} {[%emt 00:00:09]} 31. Re3 {[%clk 00:02:09]} {[%emt
00:00:25]} Nd4 {[%clk 00:07:41]} {[%emt 00:00:22]} 32. Qa4 {[%clk 00:01:50]}
{[%emt 00:00:23]} Ng4+ {[%clk 00:07:39]} {[%emt 00:00:08]} 33. Ke1 {[%clk
00:01:46]} {[%emt 00:00:07]} Nxc2+ {[%clk 00:07:26]} {[%emt 00:00:20]} 34. Kd1
{[%clk 00:01:14]} {[%emt 00:00:35]} Qxe3 {[%clk 00:07:15]} {[%emt 00:00:17]} 35.
Kxc2 {[%clk 00:01:08]} {[%emt 00:00:11]} Nxh2 {[%clk 00:07:12]} {[%emt
00:00:08]} 36. Nd2 {[%clk 00:01:08]} {[%emt 00:00:05]} Qxg3 {[%clk 00:06:59]}
{[%emt 00:00:18]} 37. Qxb4 {[%clk 00:00:53]} {[%emt 00:00:20]} d5 {[%clk
00:06:41]} {[%emt 00:00:23]} 38. Qc5 {[%emt 00:00:57]} Qxf4 {[%clk 00:06:23]}
{[%emt 00:00:19]} 39. Re1 {[%clk 00:00:07]} {[%emt 00:00:04]} Rc7 {[%clk
00:06:22]} {[%emt 00:00:06]} 40. Kb1 {[%clk 00:00:06]} {[%emt 00:00:07]} Qxd2
{[%clk 00:05:50]} {[%emt 00:00:36]} 41. Qxc7 {[%clk 00:00:06]} {[%emt
00:00:05]} Qxe1+ {[%emt 00:00:04]} 42. Kc2 Qe4+ {[%clk 00:05:48]} {[%emt
00:00:07]} 43. Kc1 {[%clk 00:00:06]} {[%emt 00:00:06]} Qc4+ {[%clk 00:05:49]}
{[%emt 00:00:07]} 44. Qxc4 {[%clk 00:00:07]} {[%emt 00:00:04]} dxc4 {[%emt
00:00:06]} 45. Kc2 c3 {[%clk 00:05:51]} {[%emt 00:00:02]} 46. Kxc3 {[%clk
00:00:15]} {[%emt 00:00:02]} Rc8+ {[%clk 00:05:55]} {[%emt 00:00:01]} 47. Kd4
{[%clk 00:00:18]} {[%emt 00:00:01]} Rc2 {[%clk 00:05:57]} {[%emt 00:00:02]} 48.
a4 {[%clk 00:00:21]} {[%emt 00:00:03]} a5 {[%clk 00:06:01]} 49. b4 {[%clk
00:00:20]} {[%emt 00:00:06]} Ra2 {[%clk 00:05:53]} {[%emt 00:00:13]} 50. b5
{[%emt 00:00:04]} Nf3+ {[%clk 00:05:54]} {[%emt 00:00:03]} 51. Kc5 {[%clk
00:00:26]} {[%emt 00:00:01]} Ne5 {[%clk 00:05:55]} {[%emt 00:00:04]} 52. b6
{[%clk 00:00:30]} {[%emt 00:00:02]} Nd7+ {[%clk 00:05:58]} {[%emt 00:00:01]} 53.
Kc6 {[%clk 00:00:31]} {[%emt 00:00:03]} Nxb6 {[%clk 00:06:02]} {[%emt
00:00:02]} 54. Kxb6 {[%clk 00:00:35]} {[%emt 00:00:01]} f4 {[%clk 00:06:05]}
{[%emt 00:00:01]} 55. Kxa5 {[%emt 00:00:02]} f3 56. Ka6 {[%clk 00:00:39]}
{[%emt 00:00:05]} f2 {[%clk 00:06:14]} 57. a5 {[%clk 00:00:42]} {[%emt
00:00:01]} f1=R {[%clk 00:06:16]} {[%emt 00:00:02]} 58. Kb6 {[%clk 00:00:40]}
{[%emt 00:00:07]} g5 {[%clk 00:06:18]} {[%emt 00:00:03]} 59. a6 {[%clk
00:00:44]} {[%emt 00:00:01]} Rxa6+ {[%clk 00:06:19]} {[%emt 00:00:04]} 60. Kxa6
{[%clk 00:00:48]} {[%emt 00:00:01]} g4 {[%clk 00:06:20]} {[%emt 00:00:03]} 61.
Kb5 {[%clk 00:00:51]} {[%emt 00:00:03]} g3 {[%emt 00:00:05]} 62. Kc4 g2 {[%clk
00:06:23]} {[%emt 00:00:01]} 63. Kd3 {[%clk 00:01:00]} g1=R {[%clk 00:06:23]}
{[%emt 00:00:04]} 64. Ke2 {[%clk 00:01:03]} {[%emt 00:00:03]} h5 {[%clk
00:06:24]} {[%emt 00:00:04]} 65. Ke3 {[%clk 00:01:07]} {[%emt 00:00:01]} h4
{[%clk 00:06:28]} {[%emt 00:00:01]} 66. Ke2 {[%clk 00:01:11]} h3 {[%clk
00:06:31]} {[%emt 00:00:01]} 67. Kd3 {[%clk 00:01:14]} {[%emt 00:00:01]} h2
{[%clk 00:06:35]} {[%emt 00:00:02]} 68. Ke4 {[%clk 00:01:18]} {[%emt 00:00:01]}
h1=Q+ {[%clk 00:06:34]} {[%emt 00:00:06]} 69. Ke3 {[%clk 00:01:21]} {[%emt
00:00:01]} Rf3+ {[%clk 00:06:34]} {[%emt 00:00:05]} 70. Ke2 {[%clk 00:01:24]}
{[%emt 00:00:02]} Rfg3 {[%clk 00:06:31]} {[%emt 00:00:10]} 71. Kd2 {[%clk
00:01:26]} {[%emt 00:00:03]} Qg2# {[%clk 00:06:34]} {[%emt 00:00:02]} 0-1



[ePGN "0.1;DGT LiveChess/2.2.6"]

[Event "MČR mládeže v rapid šachu 2024 H10"]
[Site "Harrachov, Czech Republic"]
[Date "????.??.??"]
[Round "5.4"]
[White "Bukovskij Dmitri"]
[Black "Stepnicka Filip"]
[Result "0-1"]
[TimeControl "20+5"]
[WhiteFideId "23749660"]
[BlackFideId "23771542"]
[WhiteElo "1700"]
[BlackElo "1531"]

1. d4 {[%clk 00:20:08]} d5 {[%clk 00:20:09]} {[%emt 00:00:02]} 2. c4 {[%clk
00:20:12]} e6 {[%clk 00:20:11]} {[%emt 00:00:03]} 3. Nc3 {[%clk 00:20:16]} Nf6
{[%clk 00:20:07]} {[%emt 00:00:09]} 4. cxd5 {[%clk 00:20:20]} {[%emt 00:00:02]}
exd5 {[%clk 00:20:09]} {[%emt 00:00:03]} 5. Bg5 {[%emt 00:00:07]} Bb4 {[%clk
00:19:47]} {[%emt 00:00:21]} 6. e3 {[%clk 00:20:21]} {[%emt 00:00:08]} Bxc3+
{[%clk 00:19:15]} {[%emt 00:00:37]} 7. bxc3 {[%clk 00:20:24]} {[%emt 00:00:02]}
c5 {[%clk 00:19:04]} {[%emt 00:00:16]} 8. Nf3 {[%clk 00:19:47]} {[%emt
00:00:42]} Nc6 {[%clk 00:17:58]} {[%emt 00:01:11]} 9. Bb5 {[%clk 00:19:18]}
{[%emt 00:00:33]} Bd7 {[%clk 00:17:44]} {[%emt 00:00:20]} 10. O-O {[%clk
00:19:18]} {[%emt 00:00:05]} cxd4 {[%clk 00:17:23]} {[%emt 00:00:26]} 11. cxd4
{[%clk 00:18:40]} {[%emt 00:00:44]} O-O {[%clk 00:17:19]} {[%emt 00:00:09]} 12.
Bd3 {[%clk 00:18:05]} {[%emt 00:00:39]} h6 {[%clk 00:16:54]} {[%emt 00:00:31]}
13. Bxf6 {[%clk 00:17:35]} {[%emt 00:00:35]} Qxf6 {[%clk 00:16:55]} {[%emt
00:00:04]} 14. Qb3 {[%clk 00:17:28]} {[%emt 00:00:11]} b6 {[%clk 00:16:09]}
{[%emt 00:00:51]} 15. Qxd5 {[%clk 00:16:55]} {[%emt 00:00:39]} Rfd8 {[%clk
00:15:48]} {[%emt 00:00:26]} 16. Qb3 {[%clk 00:15:26]} {[%emt 00:01:33]} Be6
{[%clk 00:15:31]} {[%emt 00:00:22]} 17. Qc3 {[%clk 00:14:37]} {[%emt 00:00:53]}
Rac8 {[%clk 00:15:28]} {[%emt 00:00:10]} 18. Qd2 {[%clk 00:14:37]} {[%emt
00:00:05]} Bg4 {[%clk 00:15:11]} {[%emt 00:00:21]} 19. Be4 {[%clk 00:14:09]}
{[%emt 00:00:34]} Bxf3 {[%clk 00:14:51]} {[%emt 00:00:26]} 20. Bxf3 {[%clk
00:14:09]} {[%emt 00:00:04]} Qg6 {[%clk 00:14:11]} {[%emt 00:00:44]} 21. Rac1
{[%clk 00:14:01]} {[%emt 00:00:14]} Ne5 {[%clk 00:14:04]} {[%emt 00:00:11]} 22.
Qe2 {[%clk 00:13:12]} {[%emt 00:00:55]} Nxf3+ {[%clk 00:13:59]} {[%emt
00:00:11]} 23. Qxf3 {[%clk 00:13:13]} {[%emt 00:00:03]} Rc2 {[%clk 00:13:24]}
{[%emt 00:00:40]} 24. a3 {[%clk 00:08:57]} {[%emt 00:04:21]} Rdc8 {[%clk
00:13:24]} {[%emt 00:00:06]} 25. Rxc2 {[%clk 00:08:35]} {[%emt 00:00:27]} Qxc2
{[%clk 00:13:22]} {[%emt 00:00:06]} 26. Qb7 {[%clk 00:06:47]} {[%emt 00:01:53]}
Rc7 {[%clk 00:13:22]} {[%emt 00:00:06]} 27. Qa6 {[%clk 00:06:19]} {[%emt
00:00:32]} Qc3 {[%emt 00:01:17]} 28. h3 {[%clk 00:05:27]} {[%emt 00:00:49]} Qc2
{[%clk 00:11:27]} {[%emt 00:00:56]} 29. Qb5 {[%clk 00:04:41]} {[%emt 00:00:51]}
Rc8 {[%clk 00:11:06]} {[%emt 00:00:26]} 30. a4 {[%clk 00:04:00]} {[%emt
00:00:46]} Qc7 {[%clk 00:10:22]} {[%emt 00:00:49]} 31. a5 {[%clk 00:02:32]}
{[%emt 00:01:34]} bxa5 {[%clk 00:09:58]} {[%emt 00:00:29]} 32. Ra1 {[%clk
00:02:34]} {[%emt 00:00:03]} Rb8 {[%clk 00:09:44]} {[%emt 00:00:20]} 33. Qxa5
{[%clk 00:02:28]} {[%emt 00:00:11]} Rb1+ {[%clk 00:09:37]} {[%emt 00:00:12]} 34.
Rxb1 {[%clk 00:02:04]} {[%emt 00:00:30]} Qxa5 {[%clk 00:09:41]} {[%emt
00:00:01]} 35. Kh2 {[%clk 00:01:56]} {[%emt 00:00:12]} Qc7+ {[%clk 00:09:44]}
{[%emt 00:00:02]} 36. g3 {[%clk 00:01:49]} {[%emt 00:00:13]} a5 {[%clk
00:09:47]} {[%emt 00:00:02]} 37. Kg2 {[%clk 00:01:49]} {[%emt 00:00:04]} a4
{[%clk 00:09:50]} {[%emt 00:00:02]} 38. Kf3 {[%clk 00:01:44]} {[%emt 00:00:10]}
a3 {[%clk 00:09:53]} {[%emt 00:00:02]} 39. Rb3 {[%clk 00:01:35]} {[%emt
00:00:14]} a2 {[%clk 00:09:51]} {[%emt 00:00:07]} 40. Ra3 {[%clk 00:01:36]}
{[%emt 00:00:03]} Qc2 {[%clk 00:09:35]} {[%emt 00:00:22]} 41. g4 {[%clk
00:00:52]} {[%emt 00:00:49]} Qb2 {[%clk 00:09:37]} {[%emt 00:00:03]} 42. Ra8+
{[%clk 00:00:52]} {[%emt 00:00:05]} Kh7 {[%clk 00:09:41]} {[%emt 00:00:02]} 0-1



[ePGN "0.1;DGT LiveChess/2.2.6"]

[Event "MČR mládeže v rapid šachu 2024 H10"]
[Site "Harrachov, Czech Republic"]
[Date "????.??.??"]
[Round "5.5"]
[White "Krivka Lukas"]
[Black "Lutskiy Mikhail"]
[Result "0-1"]
[TimeControl "20+5"]
[WhiteFideId "23752092"]
[BlackFideId "23744308"]
[WhiteElo "1489"]
[BlackElo "1729"]

1. d4 {[%clk 00:20:08]} {[%emt 00:00:01]} Nf6 {[%clk 00:20:08]} {[%emt
00:00:02]} 2. c4 {[%clk 00:20:12]} {[%emt 00:00:01]} e6 {[%clk 00:20:12]}
{[%emt 00:00:01]} 3. Nc3 {[%clk 00:20:16]} {[%emt 00:00:01]} d5 {[%clk
00:20:16]} 4. cxd5 {[%clk 00:20:15]} {[%emt 00:00:05]} exd5 {[%clk 00:20:19]}
{[%emt 00:00:01]} 5. Bg5 {[%clk 00:20:19]} Be7 {[%clk 00:20:23]} {[%emt
00:00:02]} 6. Nf3 {[%clk 00:20:23]} {[%emt 00:00:01]} Be6 {[%clk 00:20:26]}
{[%emt 00:00:02]} 7. e3 {[%clk 00:20:24]} {[%emt 00:00:04]} O-O {[%clk
00:20:25]} {[%emt 00:00:06]} 8. Bd3 {[%clk 00:20:26]} {[%emt 00:00:03]} Nbd7
{[%clk 00:20:25]} {[%emt 00:00:05]} 9. O-O {[%clk 00:20:27]} {[%emt 00:00:04]}
h6 {[%clk 00:20:29]} {[%emt 00:00:01]} 10. Bh4 {[%clk 00:20:28]} {[%emt
00:00:04]} b6 {[%clk 00:20:21]} {[%emt 00:00:13]} 11. h3 {[%clk 00:18:11]}
{[%emt 00:02:22]} c5 {[%clk 00:20:17]} {[%emt 00:00:10]} 12. Rc1 {[%clk
00:17:59]} {[%emt 00:00:16]} c4 {[%clk 00:19:52]} {[%emt 00:00:30]} 13. Bc2
{[%clk 00:17:51]} {[%emt 00:00:13]} a6 {[%clk 00:19:53]} {[%emt 00:00:05]} 14.
e4 {[%clk 00:17:05]} {[%emt 00:00:50]} dxe4 {[%clk 00:18:15]} {[%emt 00:01:43]}
15. Nxe4 {[%clk 00:17:04]} {[%emt 00:00:06]} b5 {[%clk 00:18:15]} {[%emt
00:00:05]} 16. Ne5 {[%clk 00:15:31]} {[%emt 00:01:37]} Nxe5 {[%clk 00:16:53]}
{[%emt 00:01:27]} 17. dxe5 {[%clk 00:15:24]} {[%emt 00:00:12]} Nxe4 {[%clk
00:14:11]} {[%emt 00:02:48]} 18. Bxe7 {[%clk 00:14:07]} {[%emt 00:01:21]} Qxe7
{[%clk 00:14:13]} {[%emt 00:00:01]} 19. Bxe4 {[%clk 00:13:55]} {[%emt
00:00:18]} Rad8 {[%clk 00:14:17]} {[%emt 00:00:01]} 20. Qe2 {[%clk 00:13:50]}
{[%emt 00:00:10]} Qc5 {[%clk 00:12:55]} {[%emt 00:01:24]} 21. b3 {[%clk
00:13:18]} {[%emt 00:00:40]} Kh8 {[%clk 00:12:30]} {[%emt 00:00:27]} 22. Qb2
{[%clk 00:11:06]} {[%emt 00:02:20]} Rd4 {[%clk 00:11:56]} {[%emt 00:00:35]} 23.
Rfe1 {[%clk 00:08:19]} {[%emt 00:02:55]} Qxe5 {[%clk 00:11:41]} {[%emt
00:00:21]} 24. Bf5 {[%clk 00:05:29]} {[%emt 00:02:55]} Qf6 {[%clk 00:11:11]}
{[%emt 00:00:35]} 25. Bxe6 {[%clk 00:05:10]} {[%emt 00:00:23]} fxe6 {[%clk
00:11:09]} {[%emt 00:00:08]} 26. Rxe6 {[%clk 00:03:22]} {[%emt 00:01:53]} Rd1+
{[%clk 00:11:06]} {[%emt 00:00:08]} 27. Rxd1 {[%clk 00:03:02]} {[%emt
00:00:26]} Qxb2 {[%clk 00:11:09]} {[%emt 00:00:02]} 28. bxc4 {[%clk 00:02:58]}
{[%emt 00:00:09]} Qxf2+ {[%clk 00:11:11]} {[%emt 00:00:03]} 29. Kh1 {[%clk
00:02:57]} {[%emt 00:00:05]} bxc4 {[%clk 00:11:14]} {[%emt 00:00:04]} 30. Rxa6
{[%clk 00:02:59]} {[%emt 00:00:03]} c3 {[%emt 00:00:05]} 31. Rc6 {[%clk
00:02:59]} Re8 {[%clk 00:10:52]} {[%emt 00:00:29]} 32. Kh2 {[%clk 00:02:17]}
{[%emt 00:00:48]} c2 {[%clk 00:10:48]} {[%emt 00:00:10]} 33. Rc1 {[%clk
00:02:11]} {[%emt 00:00:11]} Qf4+ {[%clk 00:10:51]} {[%emt 00:00:01]} 34. Kg1
{[%clk 00:01:22]} {[%emt 00:00:54]} Qxc1+ {[%clk 00:10:51]} {[%emt 00:00:05]}
35. Kh2 {[%clk 00:01:26]} Qf4+ {[%clk 00:10:53]} {[%emt 00:00:04]} 0-1



[ePGN "0.1;DGT LiveChess/2.2.6"]

[Event "MČR mládeže v rapid šachu 2024 H10"]
[Site "Harrachov, Czech Republic"]
[Date "????.??.??"]
[Round "5.6"]
[White "Trejbal Jindrich"]
[Black "Kobersky Matyas"]
[Result "1-0"]
[TimeControl "20+5"]
[WhiteFideId "23743948"]
[BlackFideId "23747501"]
[WhiteElo "1631"]
[BlackElo "1533"]

1. e4 {[%clk 00:20:08]} {[%emt 00:00:01]} c5 {[%clk 00:20:08]} {[%emt
00:00:03]} 2. c4 {[%clk 00:20:12]} {[%emt 00:00:02]} d6 {[%clk 00:20:09]}
{[%emt 00:00:03]} 3. Nc3 {[%clk 00:20:14]} {[%emt 00:00:03]} Nc6 {[%clk
00:20:11]} {[%emt 00:00:03]} 4. d3 {[%clk 00:20:17]} {[%emt 00:00:02]} Nf6
{[%clk 00:20:13]} {[%emt 00:00:03]} 5. g3 {[%clk 00:20:20]} {[%emt 00:00:03]}
g6 {[%clk 00:20:14]} {[%emt 00:00:04]} 6. Bg2 {[%clk 00:20:23]} {[%emt
00:00:01]} Bg7 {[%clk 00:20:17]} {[%emt 00:00:02]} 7. Nge2 {[%clk 00:20:25]}
{[%emt 00:00:03]} Bg4 {[%clk 00:20:14]} {[%emt 00:00:07]} 8. h3 {[%clk
00:20:19]} {[%emt 00:00:12]} Be6 {[%clk 00:20:15]} {[%emt 00:00:04]} 9. Nd5
{[%clk 00:20:14]} {[%emt 00:00:11]} Bxd5 {[%clk 00:18:59]} {[%emt 00:01:20]} 10.
exd5 {[%clk 00:20:13]} {[%emt 00:00:06]} Ne5 {[%clk 00:18:59]} {[%emt
00:00:04]} 11. f4 {[%clk 00:19:56]} {[%emt 00:00:23]} Ned7 {[%clk 00:18:29]}
{[%emt 00:00:36]} 12. Bd2 {[%clk 00:19:12]} {[%emt 00:00:50]} O-O {[%clk
00:18:28]} {[%emt 00:00:06]} 13. Bc3 {[%clk 00:19:04]} {[%emt 00:00:13]} Nb6
{[%clk 00:18:16]} {[%emt 00:00:16]} 14. O-O {[%clk 00:18:49]} {[%emt 00:00:21]}
Re8 {[%clk 00:17:56]} {[%emt 00:00:25]} 15. Qc2 {[%clk 00:17:57]} {[%emt
00:00:57]} Qc7 {[%clk 00:17:54]} {[%emt 00:00:07]} 16. f5 {[%clk 00:17:55]}
{[%emt 00:00:07]} Rf8 {[%clk 00:17:15]} {[%emt 00:00:44]} 17. Rae1 {[%clk
00:17:19]} {[%emt 00:00:41]} Rae8 {[%clk 00:17:11]} {[%emt 00:00:10]} 18. fxg6
{[%clk 00:17:12]} {[%emt 00:00:12]} fxg6 {[%clk 00:17:13]} {[%emt 00:00:03]} 19.
Nf4 {[%clk 00:17:07]} {[%emt 00:00:10]} Qd7 {[%clk 00:16:19]} {[%emt 00:00:58]}
20. Ne6 {[%clk 00:16:33]} {[%emt 00:00:40]} Rf7 {[%clk 00:16:05]} {[%emt
00:00:19]} 21. Qf2 {[%clk 00:15:25]} {[%emt 00:01:12]} Rc8 {[%clk 00:14:50]}
{[%emt 00:01:16]} 22. g4 {[%clk 00:14:00]} {[%emt 00:01:35]} Qe8 {[%clk
00:14:27]} {[%emt 00:00:27]} 23. Nxg7 {[%clk 00:13:34]} {[%emt 00:00:31]} Rxg7
{[%clk 00:13:37]} {[%emt 00:00:55]} 24. g5 {[%clk 00:13:00]} {[%emt 00:00:40]}
Rf7 {[%clk 00:13:03]} {[%emt 00:00:39]} 25. gxf6 {[%clk 00:12:48]} {[%emt
00:00:17]} Nd7 {[%clk 00:12:56]} {[%emt 00:00:12]} 26. Qe2 {[%clk 00:11:19]}
{[%emt 00:01:33]} Nb6 {[%clk 00:11:45]} {[%emt 00:01:16]} 27. fxe7 {[%clk
00:10:50]} {[%emt 00:00:34]} Rc7 {[%clk 00:11:33]} {[%emt 00:00:18]} 28. Rxf7
{[%clk 00:10:40]} {[%emt 00:00:14]} Kxf7 {[%clk 00:11:23]} {[%emt 00:00:04]} 29.
Rf1+ {[%clk 00:10:40]} {[%emt 00:00:17]} Kg7 {[%clk 00:11:27]} {[%emt
00:00:02]} 30. Re1+ {[%emt 00:00:18]} Kf7 {[%emt 00:00:01]} 31. Rf1+ {[%clk
00:10:39]} Kg8 {[%clk 00:11:27]} {[%emt 00:00:21]} 32. Qe6+ {[%clk 00:11:36]}
{[%emt 00:00:09]} 1-0



[ePGN "0.1;DGT LiveChess/2.2.6"]

[Event "MČR mládeže v rapid šachu 2024 H10"]
[Site "Harrachov, Czech Republic"]
[Date "????.??.??"]
[Round "5.7"]
[White "Macharacek Jakub"]
[Black "Hovhannisyan Narek"]
[Result "1-0"]
[TimeControl "20+5"]
[WhiteFideId "23766697"]
[BlackFideId "23778024"]
[WhiteElo "1584"]
[BlackElo "1570"]

1. e4 {[%clk 00:20:08]} {[%emt 00:00:01]} c6 {[%clk 00:20:10]} {[%emt
00:00:01]} 2. d4 {[%emt 00:00:01]} d5 3. exd5 {[%clk 00:20:14]} {[%emt
00:00:02]} cxd5 {[%clk 00:20:19]} {[%emt 00:00:01]} 4. Bd3 {[%clk 00:20:17]}
{[%emt 00:00:01]} Nc6 {[%clk 00:20:21]} {[%emt 00:00:04]} 5. c3 {[%clk
00:20:20]} {[%emt 00:00:01]} Nf6 {[%clk 00:20:24]} {[%emt 00:00:02]} 6. Bf4
{[%clk 00:20:24]} {[%emt 00:00:01]} e6 {[%clk 00:20:21]} {[%emt 00:00:09]} 7.
Nd2 {[%clk 00:20:26]} {[%emt 00:00:02]} Bd6 {[%clk 00:20:26]} 8. Bxd6 {[%clk
00:20:28]} {[%emt 00:00:04]} Qxd6 {[%clk 00:20:30]} 9. Ngf3 {[%clk 00:20:31]}
{[%emt 00:00:03]} O-O {[%clk 00:20:32]} {[%emt 00:00:03]} 10. O-O {[%clk
00:20:33]} {[%emt 00:00:03]} Bd7 {[%clk 00:20:36]} {[%emt 00:00:01]} 11. Rc1
{[%clk 00:20:22]} {[%emt 00:00:16]} Rfc8 {[%clk 00:20:18]} {[%emt 00:00:23]} 12.
Re1 {[%clk 00:20:22]} {[%emt 00:00:05]} a6 {[%clk 00:19:45]} {[%emt 00:00:39]}
13. Ne5 {[%clk 00:20:05]} {[%emt 00:00:20]} Qc7 {[%clk 00:18:41]} {[%emt
00:01:10]} 14. Ndf3 {[%clk 00:19:57]} {[%emt 00:00:13]} Qa5 {[%clk 00:18:03]}
{[%emt 00:00:42]} 15. a3 {[%clk 00:19:02]} {[%emt 00:01:01]} Nxe5 {[%clk
00:17:13]} {[%emt 00:00:54]} 16. dxe5 {[%clk 00:18:42]} {[%emt 00:00:26]} Ba4
{[%clk 00:17:08]} {[%emt 00:00:10]} 17. Qe2 {[%clk 00:17:57]} {[%emt 00:00:49]}
Nd7 {[%clk 00:17:03]} {[%emt 00:00:12]} 18. Nd4 {[%clk 00:17:07]} {[%emt
00:00:54]} Qb6 {[%clk 00:16:10]} {[%emt 00:00:59]} 19. Kh1 {[%clk 00:16:05]}
{[%emt 00:01:07]} Nc5 {[%clk 00:15:08]} {[%emt 00:01:07]} 20. Bb1 {[%clk
00:15:23]} {[%emt 00:00:46]} Bb3 {[%clk 00:13:23]} {[%emt 00:01:50]} 21. Qh5
{[%clk 00:14:49]} {[%emt 00:00:38]} h6 {[%clk 00:13:20]} {[%emt 00:00:10]} 22.
Re3 {[%clk 00:14:25]} {[%emt 00:00:28]} Bc4 {[%clk 00:12:26]} {[%emt 00:00:59]}
23. b4 {[%clk 00:13:55]} {[%emt 00:00:35]} Nd7 {[%clk 00:10:55]} {[%emt
00:01:36]} 24. Rg3 {[%clk 00:13:10]} {[%emt 00:00:48]} Ba2 {[%clk 00:07:05]}
{[%emt 00:03:57]} 25. Bxa2 {[%clk 00:12:20]} {[%emt 00:00:56]} Qxd4 {[%clk
00:06:28]} {[%emt 00:00:41]} 26. Qxh6 {[%clk 00:10:04]} {[%emt 00:02:21]} Qxe5
{[%clk 00:05:43]} {[%emt 00:00:50]} 27. Qh4 {[%clk 00:09:18]} {[%emt 00:00:49]}
Nf6 {[%clk 00:05:16]} {[%emt 00:00:32]} 28. f4 {[%clk 00:08:53]} {[%emt
00:00:31]} Qe2 {[%clk 00:04:09]} {[%emt 00:01:11]} 29. Qxf6 {[%clk 00:08:29]}
{[%emt 00:00:30]} g6 {[%clk 00:03:44]} {[%emt 00:00:31]} 30. Bb1 {[%clk
00:07:58]} {[%emt 00:00:36]} Qb2 {[%clk 00:02:50]} {[%emt 00:00:59]} 31. Rg1
{[%clk 00:07:51]} {[%emt 00:00:10]} Qxa3 {[%clk 00:02:47]} {[%emt 00:00:11]} 32.
Bxg6 {[%clk 00:07:44]} {[%emt 00:00:11]} Rc7 {[%clk 00:02:34]} {[%emt
00:00:19]} 33. Bxf7+ {[%clk 00:07:35]} {[%emt 00:00:13]} Kf8 {[%clk 00:02:29]}
{[%emt 00:00:10]} 34. Rg8# {[%clk 00:07:39]} {[%emt 00:00:01]} 1-0



[ePGN "0.1;DGT LiveChess/2.2.6"]